Cogmind - Beta 17.1 @@@ ROGUE MODE // 2026.09.12 @ 15:32:50 Player: Figgis Result: Destroyed by G-34 Mercenary with Small Laser Performance ------------- Evolutions (0) 0 Regions Visited (2) 400 Robots Destroyed (24) 120 Value Destroyed (539) 539 Prototype IDs (0) 0 Alien Tech Used (0) 0 Bonus (0) 0 TOTAL SCORE: 1059 Bonus ------- None Cogmind --------- Core Integrity 0/250 Matter 167/300 Energy 250/250 System Corruption 0% Temperature Cool (6) Movement Treading (160) Location -10/Mines Parts ------- > --- POWER (1) -------- Ion Engine > --- PROPULSION (2) --- Light Treads Light Treads > --- UTILITY (2) ------ Large Storage Unit Advanced Targeting Computer > --- WEAPON (2) ------- Shotgun Shotgun > --- INVENTORY (15) --- Light Ion Engine Light Treads Light Treads Sensor Array Improved Terrain Scanner Assault Rifle Light Assault Rifle Light Assault Rifle Shotgun Shotgun Assault Cannon Rocket Launcher Hammer Scythe Peak State ------------ > --- POWER ------------ Light Ion Engine > --- PROPULSION ------- Light Treads Light Treads > --- UTILITY ---------- Large Storage Unit Advanced Targeting Computer > --- WEAPON ----------- Shotgun Shotgun > --- INVENTORY -------- Ion Engine Light Ion Engine Light Treads Light Treads Sensor Array EM Pulse Gun Assault Rifle Light Assault Rifle Light Assault Rifle Shotgun Shotgun Assault Cannon Rocket Launcher Hammer Scythe [Rating: 13] Favorites ----------- Power Light Ion Engine Engine Light Ion Engine Propulsion Light Treads Treads Light Treads Utility Large Storage Unit Device Sensor Array Storage Large Storage Unit Processor Advanced Targeting Computer Weapon Shotgun Ballistic Gun Shotgun Impact Weapon Hammer Build | -11 -10 -10 ------- Run | Yrd Mat Min Slots Evolved . | . . . Power . | . . . Propulsion . | . . . Utility . | . . . Weapon . | . . . Parts Attached 17 | 4 11 2 Power 2 | . 1 1 Engine 2 | . 1 1 Core . | . . . Reactor . | . . . Propulsion 4 | 2 2 . Treads 4 | 2 2 . Leg . | . . . Wheel . | . . . Hover . | . . . Flight . | . . . Utility 5 | . 4 1 Device 2 | . 2 . Storage 2 | . 2 . Processor 1 | . . 1 Hackware . | . . . Protection . | . . . Artifact . | . . . Weapon 6 | 2 4 . Energy Gun . | . . . Energy Cannon . | . . . Ballistic Gun 5 | 2 3 . Ballistic Cannon . | . . . Launcher . | . . . Special Weapon . | . . . Impact Weapon 1 | . 1 . Slashing Weapon . | . . . Piercing Weapon . | . . . Special Melee Weapon . | . . . Unidentified Prototypes . | . . . Parts Lost 3 | . 2 1 Power 1 | . . 1 Propulsion 1 | . 1 . Utility 1 | . 1 . Weapon . | . . . Highest Loss Streak 2 | . 2 1 To Critical Strikes . | . . . Average Backups 9 | 3 7 14 Power 1 | 1 1 1 Propulsion 1 | . . 2 Utility . | . . 1 Weapon 6 | 1 5 9 Tool/Special . | . . . Unused Backups 13 | . 1 12 Power 1 | . . 1 Propulsion 1 | . . 1 Utility 2 | . 1 1 Weapon 9 | . . 9 Tool/Special . | . . . Average Slot Usage (%) 96 | . 94 99 Engine 13 | . 13 13 Treads 27 | . 27 28 Device 7 | . 9 4 Storage 13 | . 13 14 Processor 3 | . . 9 Ballistic Gun 27 | . 27 28 Peak Build Rating 13 | 4 10 13 Average Rating 8 | 1 7 12 On Entrance 4 | . 4 10 Avg Prop Armor Cover (%) 28 | 30 26 . Naked Turns . | . . . Heaviest Build 31 | 3 30 31 Greatest Support 40 | 3 40 40 Greatest Overweight (x) 1 | . 1 . Average Overweight (x) . | . . . Largest Inventory Capacity 15 | 5 15 15 Average Capacity 14 | 5 14 15 Most Carried 15 | 5 13 15 Average Carried 9 | 3 7 14 Final Capacity 15 | 5 15 15 Final Carried 14 | 4 13 14 Class Distribution -------------------- 100% | Mutant Dominant Class ---------------- Mutant | -10/Materials Mutant | -10/Mines Resources | -11 -10 -10 ----------- Run | Yrd Mat Min Matter Collected 640 | 230 300 110 Remotely . | . . . Salvage Created 709 | . 595 114 Parts 46 | . 42 4 Haulers Intercepted 2 | . 2 . Recyclers Shooed . | . . . Parts Field Recycled . | . . . Retrieved Matter . | . . . Parts Self-Destructed . | . . . Prevented . | . . . Parts Restored . | . . . Kills | -11 -10 -10 ------- Run | Yrd Mat Min Combat Hostiles Destroyed 20 | . 15 5 Guns 20 | . 15 5 Classes Destroyed 4 | . 4 . Hauler 2 | . 2 . Watcher 2 | . 2 . Swarmer 9 | . 6 3 Grunt 11 | . 9 2 Best Kill Streak 5 | . 5 3 Combat Bots Only 4 | . 4 3 Max Kills in Single Turn 1 | . 1 1 Gunslinging . | . . . Exploded . | . . . Melee . | . . . Uniques/NPCs Destroyed . | . . . Combat | -11 -10 -10 -------- Run | Yrd Mat Min Hostile Shots Fired 124 | . 90 34 Missed 32 | . 25 7 Hits 92 | . 65 27 Projectile 92 | . 65 27 Critical Strikes 1 | . 1 . Damage Taken 968 | . 660 308 Core 258 | . 172 86 Absorbed by Shields . | . . . Core Remaining (%) 100 | 100 . . Volleys Fired 86 | . 73 13 Largest 2 | . 2 2 Hottest 46 | . 46 46 Shots Fired 172 | . 146 26 Gun 172 | . 146 26 Cannon . | . . . Launcher . | . . . Special . | . . . Kinetic 172 | . 146 26 Thermal . | . . . Explosive . | . . . Electromagnetic . | . . . Robot Hit Streak 12 | . 12 8 Robot Miss Streak 6 | . 6 4 Penetration Max . | . . . Secondary Targets 5 | . 4 1 Max Gunslinging Chain 1 | . 1 1 Shots Hit Robots 102 | . 82 20 Core Hits 45 | . 36 9 Critical Kills . | . . . Critical Parts Destroyed . | . . . Critical Strikes . | . . . Melee Attacks 1 | . 1 . Impact 1 | . 1 . Slashing . | . . . Piercing . | . . . Sneak Attacks . | . . . Combat Hostiles . | . . . Follow-up Attacks . | . . . Damage Inflicted 1255 | . 886 369 Guns 1254 | . 885 369 Cannons . | . . . Explosions . | . . . Melee . | . . . Ramming 1 | . 1 . Kinetic 1254 | . 885 369 Thermal . | . . . Explosive . | . . . Electromagnetic . | . . . Impact . | . . . Slashing . | . . . Piercing . | . . . Highest Corruption . | . . . Average Corruption . | . . . Corruption Purged . | . . . Corruption Blocked . | . . . Overload Shots . | . . . Overflow Damage . | . . . Projectiles . | . . . Explosions . | . . . Melee . | . . . Knockbacks . | . . . Impact . | . . . Kinetic . | . . . Secondary . | . . . Self-Inflicted Damage . | . . . Shots . | . . . Rammed 2 | . 1 1 Targets Rammed 2 | . 1 1 Kicked . | . . . Crushed . | . . . Highest Temperature 15 | . 15 5 Average Temperature 6 | . 7 2 Received Heat Transfer 372 | . 234 138 Siege Activations . | . . . Martial Activations . | . . . Shielding Activations . | . . . Robots Disrupted . | . . . Combat Hostiles . | . . . Robots Corrupted . | . . . Combat Hostiles . | . . . Parts Fried . | . . . Impact Corruptions . | . . . Robots Melted . | . . . Combat Hostiles . | . . . Parts Melted . | . . . Heat Transferred . | . . . Parts Sabotaged . | . . . Parts Stolen . | . . . Parts Stripped . | . . . Power Chain Reactions . | . . . Alert | -11 -10 -10 ------- Run | Yrd Mat Min Maximum Alert Level . | . . . Low Security (%) 100 | 100 100 100 Level 1 . | . . . Level 2 . | . . . Level 3 . | . . . Level 4 . | . . . Level 5 . | . . . High Security . | . . . Max Security . | . . . Peak Influence 185 | . 185 76 Initial . | . . . Average 38 | . 53 9 Influence Increases 553 | . 408 145 Destroy 0b10 Robot/C 400 | . 300 100 Destroy 0b10 Robot/NC 20 | . 20 . Destroy Leader 108 | . 78 30 Successful Hack 9 | . 9 . Destroy Structure 1 | . 1 . Lose Combat Pursuer 15 | . . 15 Influence Decreases 485 | . 408 77 Time Decay 465 | . 388 77 Lost Part 20 | . 20 . Squads Dispatched 4 | . 3 1 Investigation 2 | . 1 1 Extermination . | . . . Reinforcement 2 | . 2 . Assault . | . . . Garrison . | . . . Intercept . | . . . Searches Triggered . | . . . Construction Impeded . | . . . Haulers Reinforced . | . . . Active Scanning Responses . | . . . Cargo Convoy Interrupts . | . . . Stealth | -11 -10 -10 --------- Run | Yrd Mat Min Distress Signals 2 | . 2 . Communications Jammed . | . . . Distress Signals . | . . . Times Spotted 33 | . 26 7 Peak Tracking Total 5 | . 5 3 Tactical Retreats 1 | . . 1 Traps | -11 -10 -10 ------- Run | Yrd Mat Min Traps Triggered . | . . . Indirectly . | . . . Trap Hack Attempts . | . . . Triggered . | . . . Disarmed . | . . . Reprogrammed . | . . . Reused . | . . . Traps Extracted . | . . . Installed . | . . . Triggered . | . . . Machines | -11 -10 -10 ---------- Run | Yrd Mat Min Machines Disabled . | . . . Max in Single Turn . | . . . Machines Repaired . | . . . Machines Dismantled . | . . . Machines Sabotaged . | . . . Overloaded Fab Kills . | . . . Hacking | -11 -10 -10 --------- Run | Yrd Mat Min Machines Accessed 7 | . 6 1 Terminals 6 | . 6 . Fabricators . | . . . Repair Stations . | . . . Recycling Units . | . . . Scanalyzers . | . . . Garrison Access . | . . . Total Hacks 10 | . 9 1 Successful 6 | . 5 1 Failed 4 | . 4 . Catastrophic 1 | . 1 . Database Lockouts . | . . . Manual . | . . . Terminals 9 | . 9 . Fabricators . | . . . Repair Stations . | . . . Recycling Units . | . . . Scanalyzers . | . . . Garrison Access . | . . . Terminal Hacks 6 | . 5 1 Open Door 1 | . . 1 Locate Traps 3 | . 3 . Zone Layout 2 | . 2 . Fabricator Hacks . | . . . Repair Station Hacks . | . . . Recycling Unit Hacks . | . . . Scanalyzer . | . . . Garrison Access Hacks . | . . . Unauthorized Hacks . | . . . Terminals . | . . . Fabricators . | . . . Repair Stations . | . . . Recycling Units . | . . . Scanalyzers . | . . . Garrison Access . | . . . Data Cores Recovered . | . . . Used . | . . . Hacking Detections 3 | . 3 . Full Trace Events 1 | . 1 . Feedback Events . | . . . Feedback Blocked . | . . . Robot Schematics Acquired . | . . . Robots Built . | . . . Authchips . | . . . Time . | . . . Total Robot Build Rating . | . . . Part Schematics Acquired . | . . . Parts Built . | . . . Authchips . | . . . Time . | . . . Total Part Build Rating . | . . . Part Studies Acquired . | . . . Parts Repaired . | . . . Time . | . . . Parts Recycled . | . . . Recycled Matter . | . . . Retrieved Matter . | . . . Retrieved Components . | . . . Parts Scanalyzed . | . . . Part Schematics Acquired . | . . . Parts Damaged . | . . . Bothacking | -11 -10 -10 ------------ Run | Yrd Mat Min Used RIF Installer . | . . . Robots Hacked . | . . . Non-combat . | . . . Combat . | . . . Robot Hacks Applied . | . . . Relay Couplers Released . | . . . Fabnet Peak Effective % . | . . . Robots Rewired . | . . . Allies Hacked . | . . . Hacks Repelled . | . . . Allies | -11 -10 -10 -------- Run | Yrd Mat Min Total Allies . | . . . Largest Group . | . . . Highest-Rated Group . | . . . Highest-Rated Ally . | . . . Total Orders . | . . . Ally Attacks . | . . . Total Damage . | . . . Kills . | . . . Allies Corrupted . | . . . Allies Melted . | . . . Intel | -11 -10 -10 ------- Run | Yrd Mat Min Active Infowar (turns) 1141 | . 944 197 Sensors 784 | . 587 197 Terrain 357 | . 357 . Robot Analysis Total . | . . . Derelict Logs Recovered 2 | . . 2 Drone Launches . | . . . Drone Recoveries . | . . . Exploration | -11 -10 -10 ------------- Run | Yrd Mat Min Turns Passed 2096 | 27 1389 680 Spaces Moved 1119 | 34 709 376 Core 53 | 34 19 . Treads 1066 | . 690 376 Legs . | . . . Wheels . | . . . Hover . | . . . Flight . | . . . Fastest Speed 50 | 50 50 160 Average Speed 155 | 50 157 160 Slowest Speed 240 | 50 240 160 Overloaded Moves . | . . . Propulsion Burnouts . | . . . Robots Hopped . | . . . Potential Cave-ins . | . . . Cave-ins Triggered . | . . . Exploration Rate (%) 55 | 4 92 71 Regions Visited 2 Branch Regions 1 Pre-discovered Areas 3 | . . 3 Known Exits Taken . | . . . Unknown Exits Taken 2 | 1 1 . Scrap Searched 1 | . . 1 Spaces Dug 1 | . 1 . Terrain Destroyed 1 | . 1 . Melee 1 | . 1 . Projectile . | . . . AOE . | . . . Terrain Rammed . | . . . Walls Destroyed . | . . . Machines Disabled . | . . . Actions | -11 -10 -10 --------- Run | Yrd Mat Min Total 1316 | 42 845 429 Wait 59 | . 30 29 Move 1117 | 33 708 376 Hop . | . . . Pick Up 27 | 5 17 5 Fast Attach 3 | 3 . . Attach 7 | 1 5 1 Detach . | . . . Swap 8 | . 7 1 Drop 6 | . 3 3 Fire 86 | . 73 13 Melee 1 | . 1 . Ram . | . . . Kick . | . . . Crush 2 | . 1 1 Escape Stasis . | . . . Rewire . | . . . Trap . | . . . Miscellaneous . | . . . Route ------- -11/Scrapyard -10/Materials (discovered 4 exits: [*Mat x2] / *Min x2) -10/Mines (discovered 1 exit: [*Mat]) History --------- Turn | Location | Event 13 | -11/Scrapyard | Discovered new exit (range 15) 28 | -11/Scrapyard | Entered Materials 280 | -10/Materials | Discovered new exit (range 14) 301 | -10/Materials | Build established: Mutant 387 | -10/Materials | Core integrity fell below 50% 583 | -10/Materials | Discovered new exit (range 5) 695 | -10/Materials | Discovered new exit (range 14) 1003 | -10/Materials | Discovered new exit (range 16) 1417 | -10/Materials | Entered Mines 1424 | -10/Mines | Received a Rocket Launcher from a helpful Derelict 1581 | -10/Mines | Met a Derelict shopkeep closing up shop 1818 | -10/Mines | Learned location of Storage (-7) 2047 | -10/Mines | Discovered new exit (range 8) 2078 | -10/Mines | Core integrity fell below 20% 2097 | -10/Mines | Destroyed by G-34 Mercenary with Small Laser Last Messages --------------- 01922_ Searching scrap... 01922_ Found Med. Storage Unit. 01922_ Found 38 Matter. 01923_ Acquired 38 matter. 01965_ A derelict emerges from the shadows: "Are any of them following you? I'm here trying to lose some heat after our second raid on Storage failed. Whatever you do stay away from that place, they've tightened security following our previous successful raids." World map confirmed: -7/Storage. 01967_ 32-ZOZ(g): "We scattered so the Unaware couldn't effectively use their advantage in numbers, and I suggest you do the same." 01967_ 32-ZOZ(g) slips back into the shadows. 02016_ Lgt. Ion Engine destroyed. 02019_ S-10 Pest destroyed. 02022_ Switching to secondary target: S-10 Pest. 02023_ Acquired 17 matter. 02025_ S-10 Pest destroyed. 02029_ Acquired 26 matter. 02047_ EXIT=FOUND 02095_ G-47 Trooper destroyed. Map ----- +----------------------------------------------------+ | | | | | | | | | ???????????????????????????????????? | | ???????????????????????????????????? | | ????????????????####???????????????? | | ???????????????# ##??????????????? | | ?????????????## #??????????????? | | ?????????????# ##?????????????? | | ?????????????# #?????????????? | | ?????????????# #?????????????? | | ??????###????# #??????????????? | | ????## ####?# #???????????????? | | ???## ### ####???????????????? | | #### ## #??????????#? ???? | | # ## #???###????# ?? | | ## #?## ###??# < #? | | ### ###! ##?# #? | | """ ### ##! ##? """" ?? | | """ ####?# ### ! #? """" ?? | | """ ##????# ### ! #??""""??? | | #?????# ##?? ???? | | ##?????# #### ####???# #???? | | ##??????# #??## ###?###### #???? | | ##??????# #???# #???#@ %g #???? | | #??????# #???# #???# ######???? | | ######## #???# #???# #????????? | | #???# #???# #????????? | | #### ######### ##### #????????? | | #??# #???# [= #????????? | | #??# #???# ###### ####????????? | | ##??# #???# #????#=#???????????? | | ####???# ##### #????# #???????????? | | ???????# ! #???? ???????????? | | ????#??# #######???? ???????????? | | ??? ?? #?????????? ???????????? | | ??## ?### #?????????? ???????????? | | ?? ???? ##????????# ??????????? | | ?? #???? ##???????# """??????????? | | ?# ##?? ???????# """??????????? | | # ## ??????# """??????????? | | ???????##?????????????? | | ????????????????????????? | | #? #????????????????????????? | | #???###?????????????????????????? | | ##???????????????????????????????? | | ###????????????????????????????????? | | ####???????????????????????????????? | | ###?????????????????????????????? | +----------------------------------------------------+ Best States ------------- Heat Dissipation 25 Energy Generation 10 Energy Capacity 250 Matter Stores 300 Matter Capacity 300 Sight Range 16 Robot Scan Range 14 Terrain Scan Range 14 Terrain Scan Density 10 Evasion (%) 50 Targeting Accuracy 8 Recoil Reduction 2 Item Schematics ----------------- None Robot Schematics ------------------ None Fabricated ------------ Nothing Repaired ---------- Nothing Studied --------- None Alien Tech Used ----------------- None Achievements -------------- None Challenges ------------ None Game ------ Seed ScrapoidReactiveShield Manual? 0 Play Time 00:12:37 Cumulative 219.5 hours Start 2026.09.12 @ 15:22:27 End 2026.09.12 @ 15:32:50 Sessions 1 Manual Loads 0 Difficulty Rogue Special Mode None Game No. 348 Rogue 345 Adventurer 3 Explorer 0 Win Type - Total 1 Types 1/0/0/0/0/0/0/0/0/0 Lore% 67 Gallery% 57 Achievement% 33 Wizard Run 0 Options --------- Layout 0 ASCII 0 Keyboard 0 Movement Mouse Keybinds 0 Fullscreen 2 Font 18/SmallcapsGlow Map View 76x50 Zoom Use 0% Tactical HUD 1 Map Filters NONE Filters NONE Steam 1 RUN: 8b8d8db5-e222-45c8-a195-a44e6c1a38a9